bitfinex/quotes_SOLUSD_20240614
["timestamp","ask_amount","ask_price","bid_price","bid_amount"]
[1718367695430,0.51,148.77,148.75,6.08]
[1718367695631,0.51,148.77,148.71,0.1]
[1718367695632,0.17,148.76,148.71,0.1]
[1718367695936,0.17,148.76,148.75,6.08]
[1718367696458,0.17,148.76,148.71,0.1]
[1718367696957,0.17,148.76,148.74,6.08]
[1718367697522,0.17,148.76,148.73,6.08]
[1718367697727,0.34,148.76,148.73,6.08]
[1718367699033,0.51,148.75,148.71,0.1]
[1718367699226,100.34,148.74,148.71,0.1]
[1718367699436,0.34,148.73,148.71,0.1]
[1718367699659,0.17,148.74,148.71,0.1]
[1718367699660,0.68,148.72,148.71,0.1]
[1718367700752,21.532,148.76,148.71,6.18]
[1718367700934,21.532,148.76,148.74,6.08]
[1718367701131,15.2734,148.76,148.74,6.08]
[1718367702160,0.34,148.75,148.74,6.08]
[1718367702465,0.51,148.75,148.74,6.08]
[1718367702956,0.34,148.77,148.71,0.1]
[1718367703277,122.3265,148.8,148.71,0.1]
[1718367704677,0.68,148.79,148.71,0.1]
[1718367705585,0.68,148.79,148.71,20.1]
[1718367714365,0.68,148.79,148.71,0.1]
[1718367714888,0.68,148.79,148.71,20.1]
[1718367719662,0.68,148.79,148.71,21.44070565]
[1718367720500,0.68,148.79,148.71,20.1]
[1718367722999,0.68,148.79,148.76,6.08]
[1718367724601,0.68,148.79,148.71,20.1]
[1718367724602,6.76,148.79,148.71,20.1]
[1718367724781,6.76,148.79,148.73,6.08]
[1718367726198,6.76,148.79,148.71,0.1]
[1718367726199,0.68,148.79,148.75,6.08]
[1718367727120,0.68,148.79,148.71,0.1]
[1718367727300,0.68,148.79,148.75,6.08]
[1718367729037,100.0,148.82,148.71,2.588]
[1718367729320,10.0,148.92,148.71,2.588]
[1718367729321,2.68977,148.84,148.81,6.08]
[1718367729497,29.1544,148.88,148.82,6.08]
[1718367730012,23.0744,148.88,148.82,6.08]
[1718367730198,29.1544,148.88,148.82,6.08]
[1718367730429,29.1544,148.88,148.76,15.8652]
[1718367730430,23.0744,148.88,148.83,6.08]
[1718367730604,16.5065,148.88,148.83,6.08]
[1718367730815,16.5065,148.88,148.76,15.8652]
[1718367731016,116.5065,148.88,148.83,6.08]
[1718367731716,16.5065,148.88,148.83,6.08]
[1718367732529,0.34,148.87,148.83,6.08]
[1718367732714,0.68,148.87,148.83,6.08]
[1718367734226,11.75662729,148.92,148.8,6.6513]
[1718367734227,121.7637,148.92,148.8,6.6513]
[1718367734423,6.08,148.91,148.86,6.08]
[1718367734626,353.8,148.94,148.88,6.08]
[1718367734929,359.88,148.94,148.89,6.08]
[1718367735923,0.34,148.93,148.88,6.08]
[1718367736119,359.88,148.94,148.88,6.08]
[1718367736820,359.88,148.94,148.82,39.5604]
[1718367737024,359.88,148.94,148.88,6.08]
[1718367737220,359.88,148.94,148.83,65.0]
[1718367737426,0.34,148.93,148.88,6.08]
[1718367737624,0.34,148.92,148.83,65.0]
[1718367737821,0.34,148.91,148.83,65.0]
[1718367738229,0.34,148.91,148.88,6.08]
[1718367739034,0.17,148.91,148.9,6.08]
[1718367739219,253.8,148.94,148.9,6.08]
[1718367739535,253.8,148.94,148.91,6.08]
[1718367739921,253.8,148.94,148.92,6.08]
[1718367740815,253.8,148.94,148.93,6.08]
[1718367741116,253.8,148.94,148.87,21.7758]
[1718367741310,253.8,148.94,148.92,6.08]
[1718367743227,0.17,148.93,148.87,21.7758]
[1718367743526,0.68,148.93,148.9,6.08]
[1718367744437,0.68,148.93,148.87,21.7758]
[1718367744618,0.68,148.93,148.89,6.08]
[1718367745437,0.68,148.93,148.9,6.08]
[1718367745742,0.68,148.93,148.87,21.7758]
[1718367746041,0.68,148.93,148.9,6.08]
[1718367746337,0.68,148.93,148.91,6.08]
[1718367746842,0.17,148.93,148.92,6.08]
[1718367747843,0.17,148.93,148.91,6.08]
[1718367748344,253.8,148.94,148.92,6.08]
[1718367748544,253.97,148.94,148.93,6.08]
[1718367748722,254.14,148.94,148.93,6.08]
[1718367750143,254.14,148.94,148.87,21.7758]
[1718367750447,254.14,148.94,148.92,6.08]
[1718367750448,0.17,148.93,148.92,6.08]
[1718367750811,253.97,148.94,148.92,6.08]
[1718367751217,253.97,148.94,148.93,6.08]
[1718367751432,254.14,148.94,148.93,6.08]
[1718367751946,254.14,148.94,148.89,6.08]
[1718367752131,254.14,148.94,148.92,6.08]
[1718367753142,0.17,148.93,148.83,67.9536]
[1718367753440,0.68,148.93,148.89,6.08]
[1718367753614,0.34,148.92,148.89,6.08]
[1718367753818,0.17,148.91,148.89,6.08]
[1718367754443,0.17,148.92,148.89,6.08]
[1718367754628,0.17,148.94,148.9,6.08]
[1718367754832,0.68,148.94,148.9,6.08]
[1718367755550,0.51,148.94,148.9,6.08]
[1718367755848,0.51,148.94,148.91,6.08]
[1718367756356,0.51,148.94,148.9,6.08]
[1718367756645,0.17,148.93,148.89,6.08]
[1718367759665,0.17,148.93,148.84,20.0]
[1718367759866,0.17,148.91,148.84,20.0]
[1718367760046,0.68,148.91,148.86,6.08]
[1718367760656,0.68,148.91,148.83,22.9536]
[1718367760860,6.76,148.91,148.86,6.08]
[1718367762756,0.68,148.91,148.86,6.08]
[1718367768580,0.17,148.89,148.83,16.4212]
[1718367768755,6.08,148.88,148.83,16.4212]
[1718367768946,0.51,148.87,148.83,22.5012]
[1718367769261,0.51,148.87,148.82,6.08]
[1718367769437,0.51,148.87,148.79,21.4292]
[1718367769640,0.17,148.86,148.81,6.08]
[1718367769858,0.17,148.85,148.8,6.08]
[1718367770040,0.51,148.85,148.8,6.08]
[1718367770245,0.17,148.84,148.79,21.4238]
[1718367770562,0.17,148.83,148.79,21.4238]
[1718367770744,0.51,148.83,148.79,21.4238]
[1718367770947,0.51,148.83,148.75,46.1289]
[1718367771260,6.08,148.82,148.75,21.8089]
[1718367771461,6.08,148.82,148.76,6.08]
[1718367771462,0.68,148.81,148.76,6.08]
[1718367771651,0.68,148.81,148.75,15.7235]
[1718367771962,0.68,148.81,148.76,6.08]
[1718367772339,6.76,148.81,148.71,22.7674]
[1718367772668,6.76,148.81,148.75,6.08]
[1718367772860,6.76,148.81,148.71,22.7674]
[1718367773036,0.68,148.81,148.76,6.08]
[1718367773860,0.68,148.81,148.77,6.08]
[1718367774053,0.51,148.81,148.78,6.08]
[1718367774361,12.2507,148.83,148.78,6.08]
[1718367774567,12.2507,148.83,148.77,6.08]
[1718367775458,0.17,148.81,148.77,6.08]
[1718367775773,0.51,148.81,148.77,6.08]
[1718367775949,0.17,148.8,148.77,6.08]
[1718367776162,0.51,148.8,148.77,6.08]
[1718367776558,0.34,148.8,148.77,6.08]
[1718367776762,0.17,148.79,148.77,6.08]
[1718367777058,0.34,148.8,148.77,6.08]
[1718367777260,0.34,148.8,148.78,6.08]
[1718367777771,0.34,148.8,148.71,25.2554]
[1718367777956,0.17,148.79,148.72,20.0]
[1718367778155,0.34,148.79,148.72,20.0]
[1718367778346,0.34,148.78,148.74,6.08]
[1718367778546,0.17,148.77,148.74,6.08]
[1718367779248,0.17,148.77,148.75,6.08]
[1718367780280,0.34,148.78,148.75,6.08]
[1718367781183,0.34,148.78,148.72,20.0]
[1718367781378,0.34,148.77,148.75,6.08]
[1718367781555,0.17,148.76,148.74,6.08]
[1718367782776,0.17,148.76,148.71,16.7098]
[1718367782965,0.34,148.76,148.73,6.08]
[1718367783285,0.34,148.76,148.71,16.7098]
[1718367783581,0.34,148.76,148.73,6.08]
[1718367785366,0.34,148.76,148.74,6.08]
[1718367786777,0.34,148.76,148.73,6.08]
[1718367787500,0.17,148.75,148.71,0.1]
[1718367787791,6.59,148.75,148.71,0.1]
[1718367788092,0.17,148.74,148.71,0.1]
[1718367788295,0.17,148.73,148.71,0.1]
[1718367788588,0.34,148.73,148.71,0.1]
[1718367788964,0.51,148.72,148.71,0.1]
[1718367789202,0.68,148.72,148.71,0.1]
[1718367792095,0.17,148.72,148.71,0.1]
[1718367792276,100.0,148.79,148.71,6.18]
[1718367792483,100.0,148.79,148.74,6.08]
[1718367792696,106.08,148.79,148.73,6.08]
[1718367793009,100.0,148.79,148.74,6.08]
[1718367793880,0.17,148.77,148.71,0.1]
[1718367794310,0.17,148.77,148.73,6.08]
[1718367794991,0.17,148.77,148.74,6.08]
[1718367795870,28.844,148.8,148.75,6.08]
[1718367795871,22.764,148.8,148.75,6.08]
[1718367796066,112.523,148.83,148.77,6.08]
[1718367796281,16.4264,148.84,148.8,6.08]
[1718367796780,16.4264,148.84,148.75,24.32]
[1718367796979,16.4264,148.84,148.76,20.0]
[1718367797804,22.0867,148.87,148.76,22.4872]
[1718367798010,22.0867,148.87,148.77,47.487]
[1718367798175,15.6437,148.87,148.78,38.22]
[1718367798374,15.6437,148.87,148.79,45.0]
[1718367798587,15.6437,148.87,148.8,20.0]
[1718367798813,115.6437,148.87,148.75,34.3353]
[1718367799102,115.6437,148.87,148.76,65.0]
[1718367799477,45.34,148.86,148.76,65.0]
[1718367799678,0.51,148.85,148.76,65.0]
[1718367799997,0.34,148.84,148.76,65.0]
[1718367800199,0.34,148.83,148.76,65.0]
[1718367800393,0.17,148.82,148.76,65.0]
[1718367801095,0.34,148.82,148.76,20.0]
[1718367802301,0.34,148.81,148.76,20.0]
[1718367802506,0.17,148.81,148.76,20.0]
[1718367802675,0.34,148.82,148.76,20.0]
[1718367802993,0.17,148.81,148.76,20.0]
[1718367803997,0.34,148.82,148.76,20.0]
[1718367804202,0.17,148.82,148.76,20.0]
[1718367804914,15.6437,148.87,148.77,2.4869]
[1718367805207,15.6437,148.87,148.77,47.4869]
[1718367805411,15.6437,148.87,148.8,18.22]
[1718367805706,100.0,148.9,148.8,18.22]
[1718367806975,100.0,148.9,148.81,20.0]
[1718367807295,0.34,148.89,148.81,20.0]
[1718367807498,0.17,148.87,148.81,20.0]
[1718367813106,0.17,148.87,148.81,35.1867]
[1718367813602,0.34,148.88,148.81,35.1867]
[1718367817108,0.17,148.88,148.81,35.1867]
[1718367817315,0.17,148.88,148.82,45.0]
[1718367817520,106.3985,148.92,148.82,45.0]
[1718367817521,6.3985,148.92,148.82,45.0]
[1718367817683,0.34,148.91,148.83,20.0]
[1718367817888,0.17,148.9,148.83,38.22]
[1718367818091,0.34,148.92,148.83,38.22]
[1718367818391,100.0,148.94,148.83,38.22]
[1718367818908,0.34,148.92,148.83,38.22]
[1718367819111,0.34,148.92,148.88,6.07]
[1718367819807,0.34,148.91,148.88,6.07]
[1718367820954,0.34,148.91,148.83,20.0]
[1718367828918,0.34,148.91,148.84,51.1824]
[1718367829103,0.34,148.91,148.85,20.0]
[1718367830617,0.17,148.91,148.86,15.413]
[1718367830919,16.2962,148.95,148.86,15.413]
[1718367831125,0.68,148.94,148.86,15.413]
[1718367835149,200.68,148.94,148.86,15.413]
[1718367835306,0.17,148.92,148.86,15.413]
[1718367835503,0.68,148.92,148.86,15.413]
[1718367841424,0.17,148.92,148.86,15.413]
[1718367841633,200.0,148.96,148.86,15.413]
[1718367842947,6.07,148.94,148.89,6.07]
[1718367843249,0.17,148.93,148.89,6.07]
[1718367843635,0.17,148.92,148.89,6.07]
[1718367844523,0.17,148.92,148.87,6.07]
[1718367845445,0.17,148.92,148.88,6.07]
[1718367845643,0.51,148.92,148.88,6.07]
[1718367845822,0.17,148.91,148.88,6.07]
[1718367846017,0.51,148.91,148.88,6.07]
[1718367846247,0.17,148.9,148.88,6.07]
[1718367847721,0.17,148.9,148.86,15.413]
[1718367847943,0.51,148.9,148.87,6.07]
[1718367848137,0.17,148.91,148.87,6.07]
[1718367848328,0.17,148.91,148.86,15.413]
[1718367848540,0.51,148.91,148.87,6.07]
[1718367849340,0.51,148.91,148.88,6.07]
[1718367849547,0.17,148.91,148.86,15.413]
[1718367849748,0.17,148.91,148.88,6.07]
[1718367852958,0.17,148.91,148.86,15.413]
[1718367853157,0.17,148.91,148.88,6.07]
[1718367853835,0.17,148.91,148.89,6.07]
[1718367855458,100.0,148.95,148.86,15.413]
[1718367855656,106.07,148.95,148.86,15.413]
[1718367855958,6.07,148.94,148.88,6.07]
[1718367856527,6.07,148.94,148.86,15.413]
[1718367856528,100.0,148.91,148.86,15.413]
[1718367856734,6.24,148.9,148.84,6.07]
[1718367856960,0.17,148.88,148.84,6.07]
[1718367857164,0.34,148.88,148.84,6.07]
[1718367857469,0.17,148.87,148.85,6.07]
[1718367857758,0.17,148.87,148.82,40.5522]
[1718367857953,0.17,148.87,148.83,20.0]
[1718367858257,0.17,148.88,148.83,20.0]
[1718367858433,0.17,148.94,148.87,6.07]
[1718367858636,0.17,148.94,148.88,6.07]
[1718367858637,6.75,148.94,148.88,6.07]
[1718367858946,0.17,148.92,148.87,6.07]
[1718367859154,0.68,148.92,148.87,6.07]
[1718367862473,6.75,148.92,148.86,6.07]
[1718367863362,0.68,148.92,148.87,6.07]
[1718367865189,0.68,148.92,148.86,6.07]
[1718367865554,0.68,148.92,148.83,20.0]
[1718367865754,45.68,148.92,148.86,6.07]
[1718367866269,51.75,148.92,148.86,6.07]
[1718367866569,0.68,148.92,148.87,6.07]
[1718367867259,0.68,148.92,148.88,6.07]
[1718367867973,0.68,148.92,148.89,6.07]
[1718367868175,0.34,148.92,148.9,6.07]
[1718367869056,0.34,148.92,148.87,16.0532]
[1718367869259,0.34,148.92,148.88,6.07]
[1718367869885,0.34,148.92,148.87,16.0532]
[1718367870045,0.34,148.92,148.88,6.07]
[1718367872970,0.34,148.92,148.87,16.0532]
[1718367873451,0.34,148.92,148.88,6.07]
[1718367873653,0.34,148.92,148.87,16.0532]
[1718367873867,0.34,148.92,148.88,6.07]
[1718367874966,0.17,148.91,148.88,6.07]
[1718367875153,0.34,148.91,148.88,6.07]
[1718367875777,0.34,148.91,148.87,16.0532]
[1718367876075,0.34,148.9,148.83,36.1967]
[1718367876281,0.17,148.88,148.83,16.1967]
[1718367876498,0.34,148.88,148.82,6.07]
[1718367876703,0.17,148.86,148.82,6.07]
[1718367877007,0.17,148.86,148.83,6.07]
[1718367877302,0.17,148.86,148.84,6.07]
[1718367878073,0.17,148.86,148.79,16.1967]
[1718367878074,0.17,148.86,148.83,6.07]
[1718367879375,0.34,148.86,148.79,16.1967]
[1718367879575,0.17,148.84,148.81,6.07]
[1718367879878,0.17,148.84,148.8,6.07]
[1718367880286,0.17,148.84,148.81,6.07]
[1718367882204,0.17,148.84,148.82,6.07]
[1718367882398,0.17,148.84,148.81,6.07]
[1718367883496,0.17,148.84,148.71,16.0226]
[1718367883497,0.17,148.81,148.71,16.0226]
[1718367883697,0.17,148.79,148.75,6.07]
[1718367884005,0.17,148.79,148.76,6.07]
[1718367885505,0.51,148.8,148.71,16.0226]
[1718367885506,0.34,148.8,148.78,6.07]
[1718367885683,0.17,148.8,148.78,6.07]
[1718367888583,0.17,148.8,148.77,6.07]
[1718367890510,16.3162,148.83,148.72,6.2341]
[1718367890701,16.2267,148.87,148.8,6.07]
[1718367890896,6.07,148.86,148.8,6.07]
[1718367891485,16.2267,148.87,148.8,6.07]
[1718367891486,6.07,148.85,148.8,6.07]
[1718367891888,6.07,148.85,148.77,16.6313]
[1718367891889,6.07,148.85,148.79,6.07]
[1718367892111,200.0,148.86,148.79,6.07]
[1718367892415,6.07,148.84,148.78,6.07]
[1718367892595,0.68,148.83,148.78,6.07]
[1718367893297,0.68,148.83,148.79,6.07]
[1718367895496,0.68,148.83,148.8,6.07]
[1718367895822,0.51,148.83,148.8,6.07]
[1718367896607,0.51,148.83,148.77,16.6313]
[1718367896806,0.51,148.83,148.8,6.07]
[1718367897519,0.17,148.83,148.81,6.07]
[1718367897822,16.2267,148.87,148.82,6.07]
[1718367898120,16.2267,148.87,148.83,6.07]
[1718367898495,12.1496,148.89,148.83,6.07]
[1718367898817,12.1496,148.89,148.84,6.07]
[1718367899008,6.0796,148.89,148.84,6.07]
[1718367899204,12.1496,148.89,148.84,6.07]
[1718367899415,6.0796,148.89,148.84,6.07]
[1718367899797,0.17,148.88,148.84,6.07]
[1718367899998,0.68,148.88,148.84,6.07]
[1718367900433,0.68,148.88,148.77,25.1738]
[1718367900603,0.68,148.88,148.84,6.07]
[1718367903416,0.68,148.88,148.77,22.6869]
[1718367903724,0.68,148.88,148.84,6.07]
[1718367903913,0.68,148.88,148.77,22.6869]
[1718367904118,0.68,148.88,148.78,65.0]
[1718367904307,0.68,148.88,148.84,6.07]
[1718367906634,0.68,148.88,148.78,65.0]
[1718367906846,0.68,148.88,148.82,6.07]
[1718367906847,6.75,148.88,148.82,6.07]
[1718367907048,6.75,148.88,148.78,20.0]
[1718367907049,0.17,148.86,148.78,20.0]
[1718367907364,0.17,148.86,148.79,6.07]
[1718367907365,0.17,148.83,148.79,6.07]
[1718367907663,0.51,148.83,148.79,6.07]
[1718367909076,22.3442,148.85,148.81,6.07]
[1718367909077,16.2742,148.85,148.81,6.07]
[1718367909374,0.17,148.84,148.82,6.07]
[1718367909528,0.51,148.85,148.82,6.07]
[1718367911532,0.17,148.85,148.82,6.07]
[1718367911933,0.17,148.85,148.77,16.6313]
[1718367912163,0.17,148.85,148.83,6.07]
[1718367913055,0.17,148.85,148.82,6.07]
[1718367913444,21.8613,148.89,148.78,45.0]
[1718367913751,0.17,148.88,148.84,6.07]
[1718367913960,0.17,148.88,148.83,6.07]
[1718367914260,6.24,148.88,148.78,45.0]
[1718367914442,0.17,148.88,148.83,6.07]
[1718367914648,6.07,148.87,148.79,20.0]
[1718367914848,0.17,148.86,148.81,6.07]
[1718367915442,0.68,148.87,148.81,6.07]
[1718367915750,6.75,148.87,148.81,6.07]
[1718367916963,6.75,148.87,148.79,20.0]
[1718367917146,0.68,148.87,148.82,6.07]
[1718367917464,0.68,148.87,148.83,6.07]
[1718367920161,0.68,148.87,148.79,20.0]
[1718367920371,0.17,148.85,148.83,6.07]
[1718367920536,0.34,148.85,148.83,6.07]
[1718367920742,0.17,148.85,148.83,6.07]
[1718367921262,0.51,148.87,148.83,6.07]
[1718367921263,0.17,148.86,148.83,6.07]
[1718367921765,0.51,148.87,148.83,6.07]
[1718367922151,0.33333333,148.86,148.84,6.07]
[1718367922343,0.33333333,148.86,148.79,20.0]
[1718367922543,0.33333333,148.86,148.84,6.07]
[1718367922756,0.33333333,148.86,148.8,45.0]
[1718367922960,0.33333333,148.86,148.83,6.07]
[1718367923162,0.33333333,148.86,148.8,45.0]
[1718367923352,0.33333333,148.86,148.79,20.0]
[1718367923559,0.68,148.85,148.78,20.0]
[1718367923763,0.17,148.85,148.8,6.07]
[1718367923969,0.17,148.85,148.82,6.07]
[1718367924278,6.07,148.87,148.82,6.07]
[1718367924279,0.68,148.86,148.82,6.07]
[1718367924464,6.75,148.86,148.78,20.0]
[1718367924654,6.75,148.86,148.8,6.07]
[1718367924857,0.17,148.84,148.78,20.0]
[1718367925184,0.68,148.84,148.79,6.07]
[1718367925355,0.17,148.82,148.79,6.07]
[1718367925562,0.34,148.82,148.79,6.07]
[1718367925763,0.33333333,148.81,148.79,6.07]
[1718367925950,0.34,148.8,148.74,6.0673]
[1718367926270,0.34,148.8,148.73,16.5846]
[1718367926440,0.34,148.8,148.76,6.07]
[1718367926645,0.34,148.8,148.77,6.07]
[1718367926955,128.7929,148.83,148.79,6.07]
[1718367926956,0.17,148.82,148.79,6.07]
[1718367927269,0.34,148.82,148.79,6.07]
[1718367928554,6.07,148.85,148.79,6.07]
[1718367928755,100.0,148.85,148.8,6.07]
[1718367928944,100.0,148.85,148.75,6.07]
[1718367928945,100.0,148.83,148.73,16.5846]
[1718367929156,6.07,148.82,148.74,20.0]
[1718367929468,100.0,148.83,148.74,20.0]
[1718367929469,6.07,148.81,148.75,6.07]
[1718367929674,6.07,148.81,148.74,20.0]
[1718367929675,6.07,148.81,148.76,6.07]
[1718367930076,0.68,148.8,148.74,20.0]
[1718367930257,0.68,148.8,148.76,6.07]
[1718367930859,0.68,148.8,148.74,20.0]
[1718367931162,0.68,148.8,148.75,6.07]
[1718367931666,0.68,148.8,148.76,6.07]
[1718367932864,0.68,148.8,148.74,20.0]
[1718367933073,0.68,148.8,148.76,6.07]
[1718367933880,0.68,148.8,148.74,20.0]
[1718367934073,0.68,148.8,148.77,6.07]
[1718367934268,100.0,148.9,148.79,6.07]
[1718367934467,100.0,148.9,148.76,6.4848]
[1718367934468,100.0,148.9,148.8,20.0]
[1718367934857,6.07,148.89,148.83,6.07]
[1718367935379,100.0,148.9,148.83,6.07]
[1718367935678,6.07,148.89,148.83,6.07]
[1718367935878,0.68,148.88,148.83,6.07]
[1718367937080,6.24,148.86,148.74,17.21156389]
[1718367937255,6.24,148.86,148.74,8.41827738]
[1718367937256,6.24,148.83,148.74,8.41827738]
[1718367937458,0.17,148.81,148.77,6.07]
[1718367937664,0.34,148.81,148.77,6.07]
[1718367937861,0.17,148.8,148.77,6.07]
[1718367938379,0.17,148.81,148.79,6.07]
[1718367938678,6.24,148.85,148.8,6.07]
[1718367938868,0.17,148.83,148.73,19.0722]
[1718367939177,0.17,148.83,148.78,6.07]
[1718367939366,0.17,148.83,148.8,6.07]
[1718367940459,0.51,148.84,148.82,6.07]
[1718367940670,0.17,148.84,148.82,6.07]
[1718367941583,6.07,148.88,148.82,6.07]
[1718367941784,0.68,148.86,148.82,6.07]
[1718367941959,0.68,148.86,148.76,2.4872]
[1718367942282,0.68,148.86,148.82,6.07]
[1718367942474,0.51,148.86,148.83,6.07]
[1718367942791,0.17,148.86,148.83,6.07]
[1718367943157,22.2452,148.91,148.85,6.07]
[1718367943582,6.07,148.9,148.85,6.07]
[1718367944290,22.2452,148.91,148.85,6.07]
[1718367944464,6.75,148.9,148.85,6.07]
[1718367944761,6.75,148.9,148.79,15.4859]
[1718367944967,6.75,148.9,148.84,6.07]
[1718367945787,6.75,148.9,148.85,6.07]
[1718367945972,0.68,148.9,148.85,6.07]
[1718367946683,0.68,148.9,148.82,24.28]
[1718367946863,0.68,148.9,148.85,6.07]
[1718367947064,0.68,148.9,148.82,24.28]
[1718367947265,0.68,148.9,148.85,6.07]
[1718367949091,6.75,148.9,148.84,6.07]
[1718367949300,0.17,148.88,148.8,20.0]
[1718367949488,0.68,148.88,148.83,6.07]
[1718367950589,0.17,148.86,148.81,6.07]
[1718367950900,0.68,148.86,148.81,6.07]
[1718367952086,0.68,148.86,148.79,15.4859]
[1718367952289,0.68,148.86,148.81,6.07]
[1718367952486,0.68,148.86,148.79,15.4859]
[1718367953023,6.75,148.86,148.81,6.07]
[1718367954121,6.75,148.86,148.79,15.4859]
[1718367954302,6.75,148.86,148.81,6.07]
[1718367954703,0.68,148.86,148.82,6.07]
[1718367954902,0.68,148.86,148.81,6.07]
[1718367957018,0.68,148.86,148.82,6.07]
[1718367957409,0.68,148.86,148.78,6.1559]
[1718367957410,0.68,148.86,148.81,6.07]
[1718367961920,0.17,148.86,148.78,8.6427]
[1718367962137,0.17,148.86,148.84,6.07]
[1718367962426,0.17,148.86,148.83,6.07]
[1718367962624,0.17,148.85,148.78,6.1559]
[1718367962851,0.68,148.85,148.79,20.0]
[1718367963017,0.68,148.85,148.81,6.07]
[1718367963211,0.68,148.85,148.78,6.1559]
[1718367963524,0.68,148.85,148.81,6.07]
[1718367964023,0.68,148.85,148.8,6.07]
[1718367964415,0.68,148.85,148.76,15.4556]
[1718367964615,0.68,148.85,148.81,6.07]
[1718367965526,0.68,148.85,148.82,6.07]
[1718367965724,0.51,148.85,148.76,17.9427]
[1718367966035,0.51,148.85,148.82,6.07]
[1718367966236,100.0,148.89,148.77,65.0]
[1718367966237,122.2452,148.91,148.77,65.0]
[1718367966406,122.2452,148.91,148.77,67.487]
[1718367966407,6.07,148.9,148.77,67.487]
[1718367966610,6.07,148.89,148.77,67.487]
[1718367966812,6.07,148.89,148.84,6.07]
[1718367967636,0.34,148.88,148.84,6.07]
[1718367967823,0.34,148.87,148.84,6.07]
[1718367970135,0.17,148.87,148.84,6.07]
[1718367970317,0.17,148.88,148.84,6.07]
[1718367970512,0.68,148.89,148.84,6.07]
[1718367970818,0.51,148.89,148.85,6.07]
[1718367972732,0.51,148.89,148.82,24.28]
[1718367972938,0.17,148.88,148.81,16.3693]